fUST/lending_fUST_20240707
["ID","MTS","AMOUNT","RATE_DAILY","PERIOD"]
[331379024,1720302657940,-500.0,0.00043835,120]
[331379025,1720302657960,-500.0,0.00043835,120]
[331379026,1720302657969,-500.0,0.00043835,120]
[331379027,1720302657979,-500.0,0.00043835,120]
[331379028,1720302657996,-500.0,0.00043835,120]
[331379029,1720302658010,-500.0,0.00043835,120]
[331379030,1720302658063,-500.0,0.00043835,120]
[331379031,1720302658115,-847.46,0.00043835,120]
[331379032,1720302658132,-500.0,0.00043835,20]
[331379033,1720302658142,-200.0,0.00043835,7]
[331379034,1720302658153,-500.0,0.00043835,120]
[331379035,1720302658173,-500.0,0.00043835,120]
[331379036,1720302658182,-500.0,0.00043835,120]
[331379037,1720302658199,-2725.74,0.00043835,120]
[331379038,1720302658226,-500.0,0.00043835,120]
[331379039,1720302658258,-500.0,0.00043835,120]
[331379040,1720302658270,-1382.5,0.00043835,120]
[331379041,1720302658285,-500.0,0.00043835,120]
[331379042,1720302658450,-500.0,0.00043835,120]
[331379043,1720302658461,-500.0,0.00043835,120]
[331379044,1720302658478,-500.0,0.00043835,120]
[331379045,1720302658516,-500.0,0.00043835,120]
[331379046,1720302658537,-1735.27,0.00043835,120]
[331379047,1720302658562,-670.22,0.00043835,120]
[331379048,1720302658574,-500.0,0.00043835,120]
[331379049,1720302658584,-500.0,0.00043835,120]
[331379050,1720302658614,-500.0,0.00043835,120]
[331379051,1720302658625,-500.0,0.00043835,120]
[331379052,1720302658635,-500.0,0.00043835,120]
[331379053,1720302658673,-500.0,0.00043835,120]
[331379054,1720302658732,-500.0,0.00043835,120]
[331379055,1720302658744,-500.0,0.00043835,120]
[331379056,1720302658793,-500.0,0.00043835,120]
[331379057,1720302658823,-500.0,0.00043835,120]
[331379058,1720302658835,-500.0,0.00043835,120]
[331379059,1720302658853,-500.0,0.00043835,120]
[331379060,1720302658864,-500.0,0.00043835,120]
[331379061,1720302658875,-500.0,0.00043835,120]
[331379062,1720302658931,-500.0,0.00043835,120]
[331379063,1720302658951,-500.0,0.00043835,120]
[331379064,1720302658989,-500.0,0.00043835,120]
[331379065,1720302659004,-500.0,0.00043835,120]
[331379066,1720302659083,-500.0,0.00043835,120]
[331379067,1720302659155,-500.0,0.00043835,120]
[331379068,1720302659198,-500.0,0.00043835,120]
[331379069,1720302659209,-500.0,0.00043835,120]
[331379070,1720302659219,-500.0,0.00043835,120]
[331379071,1720302659253,-500.0,0.00043835,120]
[331379072,1720302659265,-500.0,0.00043835,120]
[331379073,1720302659283,-212.85690807,0.00043835,120]
[331379074,1720302659295,-531.64402379,0.00043835,120]
[331379075,1720302659331,-500.0,0.00043835,120]
[331379076,1720302659418,-1101.36,0.00043835,120]
[331379077,1720302659430,-885.25,0.00043835,120]
[331379078,1720302659441,-503.87536572,0.00043835,120]
[331379079,1720302659467,-500.0,0.00043835,120]
[331379080,1720302659482,-500.0,0.00043835,120]
[331379081,1720302659493,-500.0,0.00043835,120]
[331379082,1720302659566,-500.0,0.00043835,120]
[331379083,1720302659578,-500.0,0.00043835,120]
[331379084,1720302659614,-500.0,0.00043835,120]
[331379085,1720302659623,-500.0,0.00043835,120]
[331379086,1720302659633,-500.0,0.00043835,120]
[331379087,1720302659654,-364.54444425,0.00043835,120]
[331379088,1720302659754,-507.08,0.00043835,120]
[331379089,1720302659765,-500.0,0.00043835,120]
[331379090,1720302659798,-500.0,0.00043835,120]
[331379091,1720302659844,-548.62830581,0.00043835,120]
[331379092,1720302659854,-500.0,0.00043835,120]
[331379093,1720302659866,-500.0,0.00043835,120]
[331379094,1720302659876,-511.10086991,0.00043835,120]
[331379095,1720302659886,-500.0,0.00043835,120]
[331379096,1720302659915,-500.0,0.00043835,120]
[331379097,1720302659940,-500.0,0.00043835,120]
[331379098,1720302659951,-500.0,0.00043835,120]
[331379099,1720302659989,-1529.45,0.00043835,120]
[331379100,1720302660128,-890.99,0.00043835,120]
[331379101,1720302660140,-500.0,0.00043835,120]
[331379102,1720302660171,-500.0,0.00043835,120]
[331379103,1720302660187,-500.0,0.00043835,120]
[331379104,1720302660197,-500.0,0.00043835,120]
[331379105,1720302660226,-500.0,0.00043835,120]
[331379106,1720302660237,-500.0,0.00043835,120]
[331379107,1720302660247,-500.0,0.00043835,120]
[331379108,1720302660259,-500.0,0.00043835,120]
[331379109,1720302660319,-500.0,0.00043835,120]
[331379110,1720302660333,-500.0,0.00043835,120]
[331379111,1720302660344,-500.0,0.00043835,120]
[331379112,1720302660363,-500.0,0.00043835,120]
[331379113,1720302660373,-500.0,0.00043835,120]
[331379114,1720302660384,-513.67729493,0.00043835,120]
[331379115,1720302660395,-500.0,0.00043835,120]
[331379116,1720302660406,-500.0,0.00043835,120]
[331379117,1720302660416,-500.0,0.00043835,120]
[331379118,1720302660430,-500.0,0.00043835,120]
[331379119,1720302660506,-500.0,0.00043835,120]
[331379120,1720302660537,-500.0,0.00043835,120]
[331379121,1720302660547,-2623.28,0.00043835,120]
[331379122,1720302660573,-500.0,0.00043835,120]
[331379123,1720302660597,-500.0,0.00043835,120]
[331379124,1720302660688,-500.0,0.00043835,120]
[331379125,1720302660699,-1473.73,0.00043835,120]
[331379126,1720302660709,-772.42,0.00043835,120]
[331379127,1720302660764,-553.14647283,0.00043835,120]
[331379128,1720302660774,-567.66,0.00043835,120]
[331379129,1720302660804,-1034.6,0.00043835,120]
[331379130,1720302660814,-500.0,0.00043835,120]
[331379131,1720302660825,-500.0,0.00043835,120]
[331379132,1720302660881,-500.0,0.00043835,120]
[331379133,1720302660896,-500.0,0.00043835,120]
[331379134,1720302660908,-500.0,0.00043835,120]
[331379135,1720302660918,-486.27537055,0.00043835,120]
[331379136,1720302660961,-500.0,0.00043835,120]
[331379137,1720302660973,-500.0,0.00043835,120]
[331379138,1720302660986,-500.0,0.00043835,120]
[331379139,1720302661052,-1567.65,0.00043835,120]
[331379140,1720302661165,-500.22824643,0.00043835,120]
[331379141,1720302661183,-500.0,0.00043835,120]
[331379142,1720302661197,-500.0,0.00043835,120]
[331379143,1720302661246,-500.0,0.00043835,120]
[331379144,1720302661372,-2445.62,0.00043835,120]
[331379145,1720302661383,-151.0,0.00043835,14]
[331379146,1720302661395,-500.0,0.00043835,120]
[331379147,1720302661465,-151.0,0.00043835,14]
[331379148,1720302661527,-151.0,0.00043835,14]
[331379149,1720302661539,-500.0,0.00043835,30]
[331379150,1720302661559,-502.02339176,0.00043835,120]
[331379151,1720302661575,-500.0,0.00043835,120]
[331379152,1720302661607,-1000.0,0.00043835,90]
[331379153,1720302661618,-514.7487565,0.00043835,120]
[331379154,1720302661640,-502.56970836,0.00043835,120]
[331379155,1720302661651,-498.0600155,0.00043835,120]
[331379156,1720302661682,-500.0,0.00043835,120]
[331379157,1720302661693,-500.0,0.00043835,120]
[331379158,1720302661704,-500.0,0.00043835,120]
[331379159,1720302661714,-500.0,0.00043835,120]
[331379160,1720302661739,-500.0,0.00043835,120]
[331379161,1720302661756,-500.0,0.00043835,120]
[331379162,1720302661776,-500.0,0.00043835,120]
[331379163,1720302661792,-500.0,0.00043835,120]
[331379164,1720302661803,-500.0,0.00043835,120]
[331379165,1720302661833,-500.0,0.00043835,120]
[331379166,1720302661861,-1027.84,0.00043835,120]
[331379167,1720302661872,-2227.15,0.00043835,120]
[331379168,1720302661969,-433.70693193,0.00043835,120]
[331379169,1720302662045,-500.0,0.00043835,120]
[331379170,1720302662076,-500.0,0.00043835,120]
[331379171,1720302662095,-500.0,0.00043835,120]
[331379172,1720302662132,-500.0,0.00043835,120]
[331379173,1720302662145,-500.0,0.00043835,120]
[331379174,1720302662155,-500.0,0.00043835,120]
[331379175,1720302662166,-500.0,0.00043835,120]
[331379176,1720302662190,-500.0,0.00043835,2]
[331379177,1720302662201,-500.0,0.00043835,120]
[331379178,1720302662302,-500.0,0.00043835,120]
[331379179,1720302662350,-151.0,0.00043835,14]
[331379180,1720302662373,-151.0,0.00043835,14]
[331379181,1720302662385,-151.0,0.00043835,14]
[331379182,1720302662398,-500.0,0.00043835,120]
[331379183,1720302662423,-2821.44,0.00043835,120]
[331379184,1720302662445,-500.0,0.00043835,120]
[331379185,1720302662469,-225.70556621,0.00043835,120]
[331379186,1720302662518,-503.58463259,0.00043835,120]
[331379187,1720302662529,-500.0,0.00043835,120]
[331379188,1720302662540,-500.0,0.00043835,120]
[331379189,1720302662563,-500.0,0.00043835,120]
[331379190,1720302662574,-323.58278056,0.00043835,120]
[331379191,1720302662586,-500.0,0.00043835,120]
[331379192,1720302662614,-507.28242998,0.00043835,120]
[331379193,1720302662635,-2829.41,0.00043835,120]
[331379194,1720302662651,-500.0,0.00043835,120]
[331379195,1720302662733,-500.0,0.00043835,120]
[331379196,1720302662762,-151.0,0.00043835,14]
[331379197,1720302662855,-151.0,0.00043835,14]
[331379198,1720302662882,-151.0,0.00043835,14]
[331379199,1720302662894,-1119.44,0.00043835,120]
[331379200,1720302662917,-151.0,0.00043835,14]
[331379201,1720302662952,-182.106432,0.00043835,14]
[331379202,1720302663003,-444.03781517,0.00043835,120]
[331379203,1720302663159,-500.0,0.00043835,120]
[331379204,1720302663186,-500.0,0.00043835,120]
[331379205,1720302663207,-818.08,0.00043835,120]
[331379206,1720302663258,-450.25862812,0.00043835,120]
[331379207,1720302663272,-500.0,0.00043835,120]
[331379208,1720302663328,-1046.17,0.00043835,120]
[331379209,1720302663350,-500.0,0.00043835,120]
[331379210,1720302663362,-500.0,0.00043835,120]
[331379211,1720302663417,-500.0,0.00043835,120]
[331379212,1720302663428,-500.0,0.00043835,120]
[331379213,1720302663439,-500.0,0.00043835,120]
[331379214,1720302663449,-2276.66,0.00043835,120]
[331379215,1720302663460,-500.0,0.00043835,120]
[331379216,1720302663472,-500.0,0.00043835,120]
[331379217,1720302663511,-500.0,0.00043835,120]
[331379218,1720302663529,-500.0,0.00043835,120]
[331379219,1720302663543,-500.0,0.00043835,120]
[331379220,1720302663554,-997.04,0.00043835,120]
[331379221,1720302663575,-500.0,0.00043835,120]
[331379222,1720302663585,-2563.67,0.00043835,120]
[331379223,1720302663597,-630.16,0.00043835,120]
[331379224,1720302663649,-151.0,0.00043835,14]
[331379225,1720302663659,-500.0,0.00043835,120]
[331379226,1720302663671,-557.12,0.00043835,120]
[331379227,1720302663714,-151.0,0.00043835,14]
[331379228,1720302663738,-151.0,0.00043835,14]
[331379229,1720302663753,-500.0,0.00043835,120]
[331379230,1720302663765,-773.73,0.00043835,120]
[331379231,1720302663776,-500.0,0.00043835,120]
[331379232,1720302663834,-1012.44,0.00043835,120]
[331379233,1720302663980,-500.0,0.00043835,120]
[331379234,1720302664009,-500.0,0.00043835,120]
[331379235,1720302664122,-24232.3,0.00043835,120]
[331379236,1720302664202,-500.0,0.00043835,120]
[331379237,1720302664258,-500.0,0.00043835,120]
[331379238,1720302664278,-151.0,0.00043835,14]
[331379239,1720302664292,-500.0,0.00043835,120]
[331379240,1720302664303,-500.0,0.00043835,120]
[331379241,1720302664313,-500.0,0.00043835,120]
[331379242,1720302664324,-412.922407,0.00043835,14]
[331379243,1720302664335,-500.0,0.00043835,120]
[331379244,1720302664404,-500.0,0.00043835,120]
[331379245,1720302664418,-500.0,0.00043835,2]
[331379246,1720302664464,-721.54,0.00043835,120]
[331379247,1720302664475,-500.0,0.00043835,120]
[331379248,1720302664568,-500.0,0.00043835,120]
[331379249,1720302664608,-500.0,0.00043835,120]
[331379250,1720302664618,-2302.41,0.00043835,120]
[331379251,1720302664629,-959.23,0.00043835,120]
[331379252,1720302664639,-439.270526,0.00043835,14]
[331379253,1720302664651,-500.0,0.00043835,120]
[331379254,1720302664685,-439.270526,0.00043835,14]
[331379255,1720302664712,-500.0,0.00043835,120]
[331379256,1720302664738,-500.0,0.00043835,120]
[331379257,1720302664758,-500.0,0.00043835,2]
[331379258,1720302664788,-439.270526,0.00043835,14]
[331379259,1720302664830,-500.0,0.00043835,120]
[331379260,1720302664851,-712.34,0.00043835,120]
[331379261,1720302664876,-4201.84,0.00043835,120]
[331379262,1720302664948,-412.922407,0.00043835,14]
[331379263,1720302664959,-412.922407,0.00043835,14]
[331379264,1720302664969,-500.0,0.00043835,120]
[331379265,1720302664980,-500.0,0.00043835,120]
[331379266,1720302664993,-500.0,0.00043835,120]
[331379267,1720302665032,-439.270526,0.00043835,14]
[331379268,1720302665060,-439.270526,0.00043835,14]
[331379269,1720302665106,-439.270526,0.00043835,14]
[331379270,1720302665117,-412.922407,0.00043835,14]
[331379271,1720302665206,-151.0,0.00043835,14]
[331379272,1720302665232,-527.59851689,0.00043835,120]
[331379273,1720302665250,-412.922407,0.00043835,14]
[331379274,1720302665334,-503.73,0.00043835,120]
[331379275,1720302665359,-500.0,0.00043835,120]
[331379276,1720302665370,-151.0,0.00043835,14]
[331379277,1720302665456,-412.922407,0.00043835,14]
[331379278,1720302665467,-500.0,0.00043835,120]
[331379279,1720302665489,-500.0,0.00043835,120]
[331379280,1720302665534,-151.0,0.00043835,14]
[331379281,1720302665545,-505.42813126,0.00043835,120]
[331379282,1720302665555,-500.0,0.00043835,120]
[331379283,1720302665626,-729.49,0.00043835,120]
[331379284,1720302665742,-500.0,0.00043835,120]
[331379285,1720302665765,-500.0,0.00043835,120]
[331379286,1720302665806,-500.0,0.00043835,120]
[331379287,1720302665917,-1284.13,0.00043835,120]
[331379288,1720302666011,-500.0,0.00043835,120]
[331379289,1720302666023,-500.0,0.00043835,120]
[331379290,1720302666114,-500.0,0.00043835,120]
[331379291,1720302666151,-500.0,0.00043835,120]
[331379292,1720302666219,-500.0,0.00043835,120]
[331379293,1720302666275,-534.9161427,0.00043835,120]
[331379294,1720302666285,-500.0,0.00043835,120]
[331379295,1720302666307,-500.0,0.00043835,120]
[331379296,1720302666318,-836.46,0.00043835,120]
[331379297,1720302666340,-1082.61,0.00043835,120]
[331379298,1720302666351,-1026.15,0.00043835,120]
[331379299,1720302666365,-1020.89,0.00043835,120]
[331379300,1720302666428,-151.0,0.00043835,14]
[331379301,1720302666440,-500.0,0.00043835,120]
[331379302,1720302666450,-151.0,0.00043835,14]
[331379303,1720302666631,-151.0,0.00043835,14]
[331379304,1720302666718,-1435.5,0.00043835,120]
[331379305,1720302666729,-151.0,0.00043835,14]
[331379306,1720302666794,-151.0,0.00043835,14]
[331379307,1720302666862,-500.0,0.00043835,120]
[331379308,1720302666874,-151.0,0.00043835,14]
[331379309,1720302666885,-500.0,0.00043835,120]
[331379310,1720302666896,-1709.61,0.00043835,120]
[331379311,1720302666933,-500.0,0.00043835,120]
[331379312,1720302666946,-500.0,0.00043835,120]
[331379313,1720302666957,-151.0,0.00043835,14]
[331379314,1720302666978,-151.0,0.00043835,14]
[331379315,1720302666989,-151.0,0.00043835,14]
[331379316,1720302667000,-428.07345247,0.00043835,120]
[331379317,1720302667012,-1389.95,0.00043835,120]
[331379318,1720302667056,-1005.38,0.00043835,120]
[331379319,1720302667067,-500.74619848,0.00043835,120]
[331379320,1720302667088,-500.0,0.00043835,120]
[331379321,1720302667098,-500.0,0.00043835,120]
[331379322,1720302667118,-500.0,0.00043835,120]
[331379323,1720302667177,-500.0,0.00043835,120]
[331379324,1720302667187,-500.0,0.00043835,120]
[331379325,1720302667209,-755.27,0.00043835,120]
[331379326,1720302667232,-2719.95,0.00043835,120]
[331379327,1720302667264,-500.0,0.00043835,120]
[331379328,1720302667277,-500.0,0.00043835,120]
[331379329,1720302667345,-60018.69,0.00043835,120]
[331379330,1720302667355,-500.0,0.00043835,120]
[331379331,1720302667368,-504.73942185,0.00043835,120]
[331379332,1720302667378,-10182.86,0.00043835,120]
[331379333,1720302667421,-3906.72,0.00043835,120]
[331379334,1720302667442,-500.0,0.00043835,120]
[331379335,1720302667481,-500.0,0.00043835,120]
[331379336,1720302667491,-500.0,0.00043835,120]
[331379337,1720302667501,-500.0,0.00043835,120]
[331379338,1720302667534,-500.0,0.00043835,120]
[331379339,1720302667628,-500.0,0.00043835,120]
[331379340,1720302667690,-500.0,0.00043835,120]
[331379341,1720302667721,-500.0,0.00043835,120]
[331379342,1720302667769,-500.0,0.00043835,120]
[331379343,1720302667780,-500.0,0.00043835,120]
[331379344,1720302667825,-1418.8,0.00043835,120]
[331379345,1720302667854,-500.0,0.00043835,120]
[331379346,1720302667906,-500.0,0.00043835,120]
[331379347,1720302667937,-500.0,0.00043835,120]
[331379348,1720302667948,-252.70517784,0.00043835,120]
[331379349,1720302668009,-11600.25,0.00043835,120]
[331379350,1720302668034,-29746.28,0.00043835,120]
[331379351,1720302668157,-500.0,0.00043835,120]
[331379352,1720302668168,-500.0,0.00043835,120]
[331379353,1720302668180,-500.0,0.00043835,120]
[331379354,1720302668262,-500.0,0.00043835,120]
[331379355,1720302668297,-774.05,0.00043835,120]
[331379356,1720302668321,-500.0,0.00043835,120]
[331379357,1720302668333,-500.0,0.00043835,120]
[331379358,1720302668389,-500.0,0.00043835,120]
[331379359,1720302668525,-500.0,0.00043835,120]
[331379360,1720302668556,-382.73923927,0.00043835,120]
[331379361,1720302668567,-1743.83,0.00043835,120]
[331379362,1720302668591,-6238.13,0.00043835,21]
[331379363,1720302668609,-500.0,0.00043835,120]
[331379364,1720302668639,-500.0,0.00043835,120]
[331379365,1720302668685,-500.0,0.00043835,120]
[331379366,1720302668696,-500.0,0.00043835,120]
[331379367,1720302668726,-500.0,0.00043835,120]
[331379368,1720302668757,-500.0,0.00043835,120]
[331379369,1720302668768,-500.0,0.00043835,120]
[331379370,1720302668790,-500.0,0.00043835,120]
[331379371,1720302668852,-559.08,0.00043835,120]
[331379372,1720302668864,-500.0,0.00043835,120]
[331379373,1720302668874,-500.0,0.00043835,120]
[331379374,1720302668938,-500.0,0.00043835,120]
[331379375,1720302668957,-500.0,0.00043835,120]
[331379376,1720302668970,-500.0,0.00043835,120]
[331379377,1720302669019,-500.0,0.00043835,120]
[331379378,1720302669095,-527.7988043,0.00043835,120]
[331379379,1720302669106,-500.0,0.00043835,120]
[331379380,1720302669153,-500.0,0.00043835,120]
[331379381,1720302669233,-6111.76,0.00043835,120]
[331379382,1720302669249,-500.0,0.00043835,120]
[331379383,1720302669281,-515.18,0.00043835,120]
[331379384,1720302669348,-2766.99,0.00043835,120]
[331379385,1720302669374,-500.0,0.00043835,120]
[331379386,1720302669396,-151.0,0.00043835,14]
[331379387,1720302669431,-1153.14,0.00043835,120]
[331379388,1720302669450,-151.0,0.00043835,14]
[331379389,1720302669496,-500.0,0.00043835,120]
[331379390,1720302669506,-151.0,0.00043835,14]
[331379391,1720302669552,-642.75,0.00043835,120]
[331379392,1720302669563,-500.0,0.00043835,120]
[331379393,1720302669576,-1367.11,0.00043835,120]
[331379394,1720302669589,-500.0,0.00043835,120]
[331379395,1720302669624,-500.0,0.00043835,120]
[331379396,1720302669681,-1450.86,0.00043835,120]
[331379397,1720302669694,-1247.7,0.00043835,120]
[331379398,1720302669705,-500.0,0.00043835,120]
[331379399,1720302669718,-163.2700881,0.00043835,120]
[331379400,1720302669765,-500.0,0.00043835,120]
[331379401,1720302669775,-500.0,0.00043835,120]
[331379402,1720302669792,-500.0,0.00043835,120]
[331379403,1720302669801,-500.0,0.00043835,120]
[331379404,1720302669823,-1396.39,0.00043835,120]
[331379405,1720302669843,-10261.7,0.00043835,120]
[331379406,1720302669869,-2186.34,0.00043835,120]
[331379407,1720302669880,-748.22,0.00043835,60]
[331379408,1720302669890,-838.21,0.00043835,120]
[331379409,1720302669935,-469.0649987,0.00043835,120]
[331379410,1720302669950,-2465.48,0.00043835,120]
[331379411,1720302670040,-262.08777087,0.00043835,120]
[331379412,1720302670057,-500.0,0.00043835,120]
[331379413,1720302670091,-508.01703645,0.00043835,120]
[331379414,1720302670114,-500.0,0.00043835,120]
[331379415,1720302670192,-1165.17,0.00043835,120]
[331379416,1720302670273,-500.0,0.00043835,120]
[331379417,1720302670332,-514.42925194,0.00043835,120]
[331379418,1720302670345,-500.0,0.00043835,120]
[331379419,1720302670355,-916.851394,0.00043835,14]
[331379420,1720302670374,-916.851394,0.00043835,14]
[331379421,1720302670410,-916.851394,0.00043835,14]
[331379422,1720302670435,-916.851394,0.00043835,14]
[331379423,1720302670484,-501.56325905,0.00043835,120]
[331379424,1720302670515,-500.0,0.00043835,120]
[331379425,1720302670549,-500.0,0.00043835,120]
[331379426,1720302670573,-500.0,0.00043835,120]
[331379427,1720302670584,-500.0,0.00043835,30]
[331379428,1720302670595,-500.0,0.00043835,120]
[331379429,1720302670613,-160.12091099,0.00043835,120]
[331379430,1720302670631,-500.0,0.00043835,120]
[331379431,1720302670642,-500.0,0.00043835,120]
[331379432,1720302670656,-975.58,0.00043835,120]
[331379433,1720302670667,-500.0,0.00043835,120]
[331379434,1720302670732,-812.57,0.00043835,120]
[331379435,1720302670823,-165.681665,0.00043835,14]
[331379436,1720302670915,-165.681665,0.00043835,14]
[331379437,1720302670935,-165.681665,0.00043835,14]
[331379438,1720302670949,-165.681665,0.00043835,14]
[331379439,1720302670970,-637.23736675,0.00043835,120]
[331379440,1720302671004,-500.0,0.00043835,120]
[331379441,1720302671023,-500.0,0.00043835,120]
[331379442,1720302671072,-165.681665,0.00043835,14]
[331379443,1720302671086,-165.681665,0.00043835,14]
[331379444,1720302671126,-165.681665,0.00043835,14]
[331379445,1720302671154,-165.681665,0.00043835,14]
[331379446,1720302671193,-500.0,0.00043835,120]
[331379448,1720302671204,-500.0,0.00043835,120]
[331379449,1720302671216,-961.45,0.00043835,120]
[331379450,1720302671229,-500.0,0.00043835,120]
[331379451,1720302671249,-4596.3,0.00043835,120]
[331379452,1720302671259,-2866.34,0.00043835,120]
[331379453,1720302671305,-500.0,0.00043835,120]
[331379454,1720302671332,-5618.28,0.00043835,120]
[331379455,1720302671357,-151.0,0.00043835,14]
[331379456,1720302671368,-500.0,0.00043835,120]
[331379457,1720302671378,-773.63,0.00043835,120]
[331379458,1720302671468,-500.0,0.00043835,120]
[331379459,1720302671530,-586.81,0.00043835,120]
[331379460,1720302671542,-318.91561895,0.00043835,120]
[331379461,1720302671579,-500.0,0.00043835,120]
[331379462,1720302671628,-625.02,0.00043835,120]
[331379463,1720302671639,-2045.73,0.00043835,120]
[331379464,1720302671650,-916.851394,0.00043835,14]
[331379465,1720302671662,-916.851394,0.00043835,14]
[331379466,1720302671686,-916.851394,0.00043835,14]
[331379467,1720302671752,-692.71,0.00043835,120]
[331379468,1720302671835,-500.0,0.00043835,120]
[331379469,1720302671846,-916.851394,0.00043835,14]
[331379470,1720302671856,-500.0,0.00043835,120]
[331379471,1720302671870,-500.0,0.00043835,120]
[331379472,1720302671912,-500.0,0.00043835,14]
[331379473,1720302671922,-356.34955858,0.00043835,120]
[331379474,1720302671992,-3268.94,0.00043835,120]
[331379475,1720302672002,-2516.17,0.00043835,120]
[331379476,1720302672013,-500.0,0.00043835,120]
[331379477,1720302672024,-500.0,0.00043835,120]
[331379478,1720302672034,-500.0,0.00043835,120]
[331379479,1720302672108,-1211.75,0.00043835,120]
[331379480,1720302672141,-500.0,0.00043835,120]
[331379481,1720302672188,-500.0,0.00043835,120]
[331379482,1720302672199,-500.0,0.00043835,120]
[331379483,1720302672210,-500.0,0.00043835,120]
[331379484,1720302672259,-200.0,0.00043835,7]
[331379485,1720302672270,-500.0,0.00043835,120]
[331379486,1720302672293,-507.76884595,0.00043835,120]
[331379487,1720302672313,-500.0,0.00043835,120]
[331379488,1720302672323,-151.0,0.00043835,14]
[331379489,1720302672403,-516.35,0.00043835,120]
[331379490,1720302672414,-151.0,0.00043835,14]
[331379491,1720302672426,-151.0,0.00043835,14]
[331379492,1720302672533,-151.0,0.00043835,14]
[331379493,1720302672544,-511.96558487,0.00043835,120]
[331379494,1720302672564,-151.0,0.00043835,14]
[331379495,1720302672588,-151.0,0.00043835,14]
[331379496,1720302672599,-500.0,0.00043835,120]
[331379497,1720302672710,-500.0,0.00043835,120]
[331379498,1720302672729,-151.0,0.00043835,14]
[331379499,1720302672749,-151.0,0.00043835,14]
[331379500,1720302672844,-946.4,0.00043835,120]
[331379501,1720302672907,-500.0,0.00043835,120]
[331379502,1720302672943,-500.0,0.00043835,120]
[331379503,1720302672956,-500.0,0.00043835,120]
[331379504,1720302672970,-500.0,0.00043835,120]
[331379505,1720302672989,-141.29750911,0.00043835,120]
[331379506,1720302673411,-358.70249089,0.00043835,120]
[331379507,1720302673454,-222.46305345,0.00043835,120]
[331379508,1720302723783,244.76159547,0.00014999,2]
[331379510,1720302753559,992.894525,0.00014999,2]
[331379511,1720302764174,212.98780093,0.00014999,2]
[331379513,1720302770622,309.58206422,0.00014999,2]
[331379514,1720302775434,182.63268152,0.00014999,2]
[331379515,1720302775518,277.70322402,0.00014999,2]
[331379516,1720302777917,154.85288667,0.00014999,2]
[331379517,1720302781217,193.50509403,0.00015,2]
[331379519,1720302786117,205.3687641,0.00014999,2]
[331379521,1720302794183,212.98780093,0.00014999,2]
[331379522,1720302797781,230.84665409,0.00014999,2]
[331379523,1720302798129,3129.31523282,0.00014999,4]
[331379524,1720302800781,209.15804517,0.00014999,2]
[331379526,1720302812349,755.77762153,0.00014999,2]
[331379527,1720302812752,154.83742071,0.00014999,2]
[331379528,1720302817947,566.66102029,0.00014999,2]
[331379529,1720302820156,226.47820494,0.00014999,2]